Cogmind - Beta 12 @@@ ROGUE MODE // 2023.06.14 @ 21:54:56 Player: Michael Result: Self-destructed Performance ------------- Evolutions (2) 1000 Regions Visited (5) 1000 Robots Destroyed (30) 150 Value Destroyed (808) 808 Prototype IDs (4) 80 Alien Tech Used (0) 0 Bonus (117) 117 TOTAL SCORE: 3155 Bonus ------- Follower Combat Kills 117 Cogmind --------- Core Integrity 14/550 Matter 219/300 Energy 169/250 System Corruption 0% Temperature Cool (9) Movement Core (550) Ox10 Location -8/Materials Parts ------- > --- POWER (1) -------- Ion Engine > --- PROPULSION (2) --- (None) > --- UTILITY (6) ------ Cooling System Large Storage Unit > --- WEAPON (2) ------- Katana Makeshift Axe > --- INVENTORY (15) --- Light Nuclear Core Fission Core Medium Storage Unit High-capacity Storage Unit High-capacity Storage Unit High-capacity Storage Unit Large Matter Pod (150) Improved Terrain Scanner Reactive Plating Reactive Plating Assault Rifle Peak State ------------ > --- POWER ------------ Light Nuclear Core > --- PROPULSION ------- Light Treads Wheel > --- UTILITY ---------- Improved Heat Sink Improved Heat Sink Cooling System High-capacity Storage Unit Hardened Medium Armor Plating Reactive Plating > --- WEAPON ----------- Assault Rifle Heavy Assault Rifle > --- INVENTORY -------- Light Nuclear Core Fission Core Light Fission Core Wheel Cooling System Cooling System Medium Storage Unit Large Storage Unit High-capacity Storage Unit High-capacity Storage Unit Large Matter Pod Improved Terrain Scanner Reactive Plating Reactive Plating Reactive Plating Assault Rifle Heavy Assault Rifle Makeshift Axe [Rating: 27] Favorites ----------- Power Light Nuclear Core Engine Ion Engine Power Core Light Nuclear Core Propulsion Light Treads Treads Light Treads Leg Aluminum Leg Wheel Wheel Utility Weapon Shielding Device Cooling System Storage Large Storage Unit Protection Weapon Shielding Weapon Assault Rifle Energy Gun EM Pulse Gun Ballistic Gun Assault Rifle Slashing Weapon Katana Build | -11 -10 -10 -10 -9 -8 ------- Run | Jun Mat Min Exi Min Mat Slots Evolved 4 | . . . . . 4 Power . | . . . . . . Propulsion . | . . . . . . Utility 4 | . . . . . 4 Weapon . | . . . . . . Parts Attached 44 | 5 11 1 1 1 25 Power 6 | . 2 1 . . 3 Engine 2 | . 1 . . . 1 Core 4 | . 1 1 . . 2 Reactor . | . . . . . . Propulsion 7 | 2 2 . . . 3 Treads 1 | . 1 . . . . Leg 3 | 2 . . . . 1 Wheel 3 | . 1 . . . 2 Hover . | . . . . . . Flight . | . . . . . . Utility 17 | 1 3 . 1 1 11 Device 7 | . . . . 1 6 Storage 5 | 1 2 . 1 . 1 Processor . | . . . . . . Hackware . | . . . . . . Protection 5 | . 1 . . . 4 Artifact . | . . . . . . Weapon 14 | 2 4 . . . 8 Energy Gun 1 | 1 . . . . . Energy Cannon . | . . . . . . Ballistic Gun 11 | 1 4 . . . 6 Ballistic Cannon . | . . . . . . Launcher . | . . . . . . Special Weapon . | . . . . . . Impact Weapon . | . . . . . . Slashing Weapon 2 | . . . . . 2 Piercing Weapon . | . . . . . . Special Melee Weapon . | . . . . . . Unidentified Prototypes . | . . . . . . Parts Lost 22 | . . 1 . 1 20 Power 3 | . . 1 . . 2 Propulsion 5 | . . . . . 5 Utility 9 | . . . . 1 8 Weapon 5 | . . . . . 5 Highest Loss Streak 17 | . . 1 . 1 17 To Critical Strikes . | . . . . . . Average Slot Usage (%) 93 | . 94 100 100 100 78 Engine 3 | . 8 . . . . Core 7 | . 2 13 14 14 7 Treads 10 | . 7 14 14 14 6 Leg 5 | . 12 . . . . Wheel 10 | . 7 14 14 14 6 Device 4 | . . . . 9 19 Storage 13 | . 14 14 14 14 9 Protection 12 | . 12 14 14 4 10 Ballistic Gun 24 | . 26 28 28 28 15 Naked Turns . | . . . . . . Heaviest Build 72 | 8 30 30 50 51 72 Greatest Support 20 | 20 20 10 10 10 10 Greatest Overweight (x) 19 | . 2 2 4 5 19 Average Overweight (x) 1 | . . 2 2 4 6 Largest Inventory Capacity 20 | 8 15 15 20 20 20 Average Capacity 14 | 7 10 15 16 20 19 Most Carried 20 | 5 11 11 17 17 20 Average Carried 11 | 3 9 10 14 16 16 Final Capacity 20 | 8 15 15 20 20 15 Final Carried 17 | 5 11 11 17 17 11 Class Distribution -------------------- 97% | Mutant Dominant Class ---------------- Mutant | -10/Materials Mutant | -10/Mines Mutant | -10/Exiles Mutant | -9/Mines Mutant | -8/Materials Resources | -11 -10 -10 -10 -9 -8 ----------- Run | Jun Mat Min Exi Min Mat Matter Collected 1223 | 189 432 140 . 117 345 Remotely 30 | . . . . . 30 Salvage Created 1198 | . 500 61 . 37 600 Parts 61 | . 35 . . 4 22 Haulers Intercepted 1 | . . . . . 1 Recyclers Shooed 6 | . 3 . . . 3 Parts Field Recycled . | . . . . . . Retrieved Matter . | . . . . . . Parts Self-Destructed . | . . . . . . Prevented . | . . . . . . Kills | -11 -10 -10 -10 -9 -8 ------- Run | Jun Mat Min Exi Min Mat Combat Hostiles Destroyed 22 | . 12 . . 1 9 Guns 22 | . 12 . . 1 9 Classes Destroyed 10 | . 5 . . . 5 Worker 1 | . . . . . 1 Tunneler 1 | . 1 . . . . Hauler 1 | . . . . . 1 Recycler 3 | . 1 1 . . 1 Watcher 2 | . 2 . . . . Swarmer 6 | . 6 . . . . Grunt 12 | . 6 . . 1 5 Duelist 1 | . . . . . 1 Sentry 2 | . . . . . 2 Hunter 1 | . . . . . 1 Best Kill Streak 4 | . 4 1 . 1 4 Combat Bots Only 4 | . 3 . . 1 4 Max Kills in Single Turn 1 | . 1 1 . 1 1 Gunslinging . | . . . . . . Exploded . | . . . . . . Melee . | . . . . . . Uniques/NPCs Destroyed . | . . . . . . Combat | -11 -10 -10 -10 -9 -8 -------- Run | Jun Mat Min Exi Min Mat Damage Taken 3081 | . 390 92 . 108 2491 Core 717 | . 152 19 . 10 536 Absorbed by Shields . | . . . . . . Redirected to Shielding 50 | . 36 7 . 7 . Regen/Repaired (Parts) 101 | . 101 . . . . Core Remaining (%) 63 | 100 . . . 27 . Volleys Fired 109 | . 45 6 . 7 51 Largest 2 | . 2 2 . 2 2 Hottest 46 | . 40 40 . 40 46 Shots Fired 218 | . 90 12 . 14 102 Gun 218 | . 90 12 . 14 102 Cannon . | . . . . . . Launcher . | . . . . . . Special . | . . . . . . Kinetic 218 | . 90 12 . 14 102 Thermal . | . . . . . . Explosive . | . . . . . . Electromagnetic . | . . . . . . Robot Hit Streak 16 | . 7 6 . 9 16 Robot Miss Streak 6 | . 3 6 . 2 3 Penetration Max . | . . . . . . Secondary Targets 3 | . . . . . 3 Max Gunslinging Chain 1 | . . . . . 1 Shots Hit Robots 156 | . 57 6 . 10 83 Core Hits 57 | . 25 2 . 2 28 Critical Kills 1 | . 1 . . . . Critical Parts Destroyed 3 | . 1 . . 2 . Critical Strikes 6 | . 2 . . 2 2 Destroy 4 | . 2 . . 2 . Sever 2 | . . . . . 2 Melee Attacks 4 | . . . . . 4 Impact . | . . . . . . Slashing 4 | . . . . . 4 Piercing . | . . . . . . Sneak Attacks 1 | . . . . . 1 Combat Hostiles . | . . . . . . Follow-up Attacks . | . . . . . . Damage Inflicted 2114 | . 729 97 . 122 1166 Guns 1943 | . 729 97 . 122 995 Cannons . | . . . . . . Explosions . | . . . . . . Melee 171 | . . . . . 171 Ramming . | . . . . . . Kinetic 1943 | . 729 97 . 122 995 Thermal . | . . . . . . Explosive . | . . . . . . Electromagnetic . | . . . . . . Impact . | . . . . . . Slashing 171 | . . . . . 171 Piercing . | . . . . . . Highest Corruption . | . . . . . . Average Corruption . | . . . . . . Corruption Purged . | . . . . . . Corruption Blocked . | . . . . . . Overload Shots . | . . . . . . Overflow Damage . | . . . . . . Projectiles . | . . . . . . Explosions . | . . . . . . Melee . | . . . . . . Knockbacks . | . . . . . . Impact . | . . . . . . Kinetic . | . . . . . . Secondary . | . . . . . . Self-Inflicted Damage . | . . . . . . Shots . | . . . . . . Rammed . | . . . . . . Targets Rammed . | . . . . . . Kicked . | . . . . . . Crushed . | . . . . . . Highest Temperature 15 | . 1 . . 1 15 Average Temperature 5 | . 1 . . 1 9 Received Heat Transfer 1347 | . 150 6 . 48 1143 Siege Activations . | . . . . . . Robots Corrupted . | . . . . . . Combat Hostiles . | . . . . . . Parts Fried . | . . . . . . Impact Corruptions . | . . . . . . Robots Melted . | . . . . . . Combat Hostiles . | . . . . . . Parts Melted . | . . . . . . Heat Transferred . | . . . . . . Parts Sabotaged . | . . . . . . Parts Stolen . | . . . . . . Parts Stripped . | . . . . . . Power Chain Reactions . | . . . . . . Missiles Intercepted . | . . . . . . Alert | -11 -10 -10 -10 -9 -8 ------- Run | Jun Mat Min Exi Min Mat Peak Influence 231 | . 223 119 . 149 231 Initial 57 | . . 28 . . 57 Average 85 | . 64 81 . 130 129 Maximum Alert Level 1 | . 1 . . . 1 Low Security (%) 92 | 100 90 100 . 100 81 Level 1 7 | . 9 . . . 18 Level 2 . | . . . . . . Level 3 . | . . . . . . Level 4 . | . . . . . . Level 5 . | . . . . . . High Security . | . . . . . . Max Security . | . . . . . . Squads Dispatched 3 | . 2 . . . 1 Investigation 1 | . 1 . . . . Extermination . | . . . . . . Reinforcement 2 | . 1 . . . 1 Assault . | . . . . . . Garrison . | . . . . . . Intercept . | . . . . . . Searches Triggered . | . . . . . . Construction Impeded . | . . . . . . Haulers Reinforced . | . . . . . . Active Scanning Responses . | . . . . . . Cargo Convoy Interrupts . | . . . . . . Stealth | -11 -10 -10 -10 -9 -8 --------- Run | Jun Mat Min Exi Min Mat Distress Signals 5 | . 2 . . . 3 Communications Jammed . | . . . . . . Distress Signals . | . . . . . . Times Spotted 53 | . 22 3 . 9 19 Peak Tracking Total 6 | . 5 3 . 4 6 Tactical Retreats 3 | . 2 . . . 1 Traps | -11 -10 -10 -10 -9 -8 ------- Run | Jun Mat Min Exi Min Mat Traps Triggered 1 | . 1 . . . . Indirectly . | . . . . . . Trap Hack Attempts . | . . . . . . Triggered . | . . . . . . Disarmed . | . . . . . . Reprogrammed . | . . . . . . Reused . | . . . . . . Traps Extracted . | . . . . . . Installed . | . . . . . . Triggered . | . . . . . . Exploded 1 | . . . . . 1 Machines | -11 -10 -10 -10 -9 -8 ---------- Run | Jun Mat Min Exi Min Mat Machines Disabled 1 | . . . . . 1 Max in Single Turn 1 | . . . . . 1 Machines Repaired . | . . . . . . Machines Sabotaged . | . . . . . . Overloaded Fab Kills . | . . . . . . Hacking | -11 -10 -10 -10 -9 -8 --------- Run | Jun Mat Min Exi Min Mat Machines Accessed 11 | . 8 . 1 . 2 Terminals 8 | . 6 . . . 2 Fabricators . | . . . . . . Repair Stations 1 | . 1 . . . . Recycling Units 1 | . 1 . . . . Scanalyzers . | . . . . . . Garrison Access . | . . . . . . Total Hacks 27 | . 21 . 1 . 5 Successful 17 | . 14 . 1 . 2 Failed 10 | . 7 . . . 3 Catastrophic 2 | . 1 . . . 1 Database Lockouts . | . . . . . . Manual 2 | . 1 . . . 1 Terminals 19 | . 14 . . . 5 Fabricators . | . . . . . . Repair Stations 6 | . 6 . . . . Recycling Units 1 | . 1 . . . . Scanalyzers . | . . . . . . Garrison Access . | . . . . . . Terminal Hacks 10 | . 8 . 1 . 1 Record 1 | . . . 1 . . Prototype ID Bank 2 | . 2 . . . . Scanalyzer Index 1 | . 1 . . . . Unreport Threat 1 | . 1 . . . . Locate Traps 2 | . 1 . . . 1 Hauler Manifests 1 | . 1 . . . . Zone Layout 2 | . 2 . . . . Fabricator Hacks . | . . . . . . Repair Station Hacks 6 | . 6 . . . . Scan Component 3 | . 3 . . . . Repair 3 | . 3 . . . . Recycling Unit Hacks . | . . . . . . Scanalyzer . | . . . . . . Garrison Access Hacks . | . . . . . . Unauthorized Hacks 1 | . . . . . 1 Terminals 1 | . . . . . 1 Botnet 1 | . . . . . 1 Fabricators . | . . . . . . Repair Stations . | . . . . . . Recycling Units . | . . . . . . Scanalyzers . | . . . . . . Garrison Access . | . . . . . . Data Cores Recovered . | . . . . . . Used . | . . . . . . Hacking Detections 8 | . 6 . . . 2 Full Trace Events . | . . . . . . Feedback Events . | . . . . . . Feedback Blocked . | . . . . . . Robot Schematics Acquired . | . . . . . . Robots Built . | . . . . . . Authchips . | . . . . . . Time . | . . . . . . Total Robot Build Rating . | . . . . . . Part Schematics Acquired . | . . . . . . Parts Built . | . . . . . . Authchips . | . . . . . . Time . | . . . . . . Total Part Build Rating . | . . . . . . Parts Repaired 3 | . 3 . . . . Time 90 | . 90 . . . . Parts Recycled . | . . . . . . Recycled Matter . | . . . . . . Retrieved Matter . | . . . . . . Retrieved Components . | . . . . . . Parts Scanalyzed . | . . . . . . Part Schematics Acquired . | . . . . . . Parts Damaged . | . . . . . . Bothacking | -11 -10 -10 -10 -9 -8 ------------ Run | Jun Mat Min Exi Min Mat Used RIF Installer . | . . . . . . Robots Hacked . | . . . . . . Non-combat . | . . . . . . Combat . | . . . . . . Robot Hacks Applied . | . . . . . . Relay Couplers Released . | . . . . . . Fabnet Peak Effective % . | . . . . . . Robots Rewired . | . . . . . . Allies Hacked . | . . . . . . Hacks Repelled . | . . . . . . Allies | -11 -10 -10 -10 -9 -8 -------- Run | Jun Mat Min Exi Min Mat Total Allies 3 | . . 3 . . . Largest Group 3 | . . 3 3 3 2 Highest-Rated Group 40 | . . 40 40 40 24 Highest-Rated Ally 16 | . . 16 16 16 16 Total Orders . | . . . . . . Ally Attacks 24 | . . 6 . 12 6 Total Damage 292 | . . 69 . 152 71 Kills 10 | . . 3 . 6 1 Allies Corrupted . | . . . . . . Allies Melted . | . . . . . . Intel | -11 -10 -10 -10 -9 -8 ------- Run | Jun Mat Min Exi Min Mat Robot Analysis Total . | . . . . . . Derelict Logs Recovered 1 | . . 1 . . . Drone Launches . | . . . . . . Drone Recoveries . | . . . . . . Exploration | -11 -10 -10 -10 -9 -8 ------------- Run | Jun Mat Min Exi Min Mat Turns Passed 2346 | 55 912 564 199 170 446 Spaces Moved 1479 | 41 573 486 167 99 113 Core 10 | 8 . . . . 2 Treads . | . . . . . . Legs 282 | 33 248 . . . 1 Wheels 1187 | . 325 486 167 99 110 Hover . | . . . . . . Flight . | . . . . . . Fastest Speed 50 | 50 95 110 110 140 140 Average Speed 118 | 106 108 110 115 150 184 Slowest Speed 1000 | 120 120 110 140 155 1000 Overloaded Moves . | . . . . . . Propulsion Burnouts . | . . . . . . Robots Hopped . | . . . . . . Cave-ins Triggered . | . . . . . . Exploration Rate (%) 51 | 4 97 97 55 43 13 Regions Visited 5 Branch Regions 3 Pre-discovered Areas 2 | . . 1 1 . . Known Exits Taken . | . . . . . . Unknown Exits Taken 5 | 1 1 1 1 1 . Scrap Searched 2 | . . 1 . 1 . Spaces Dug . | . . . . . . Terrain Destroyed . | . . . . . . Melee . | . . . . . . Projectile . | . . . . . . AOE . | . . . . . . Terrain Rammed . | . . . . . . Walls Destroyed . | . . . . . . Machines Disabled . | . . . . . . Actions | -11 -10 -10 -10 -9 -8 --------- Run | Jun Mat Min Exi Min Mat Total 1850 | 50 774 503 172 107 244 Wait 176 | . 124 10 . . 42 Move 1474 | 40 572 485 166 98 113 Hop . | . . . . . . Pick Up 27 | 5 11 1 5 1 4 Fast Attach 21 | 5 7 . . . 9 Attach 14 | . . 1 . 1 12 Detach 3 | . 1 . . . 2 Swap 9 | . 4 . 1 . 4 Drop 13 | . 10 . . . 3 Fire 109 | . 45 6 . 7 51 Melee 4 | . . . . . 4 Ram . | . . . . . . Kick . | . . . . . . Crush . | . . . . . . Escape Stasis . | . . . . . . Rewire . | . . . . . . Trap . | . . . . . . Miscellaneous . | . . . . . . Route ------- -11/Junkyard -10/Materials (discovered 5 exits: [*Mat x3] / [*Min x2]) -10/Mines (discovered 3 exits: [*Mat x2] / *Exi) -10/Exiles -9/Mines -8/Materials (discovered 3 exits: Fac x2 / [*Sto]) History --------- Turn | Location | Event 5 | -11/Junkyard | Discovered new exit (range 16) 56 | -11/Junkyard | Entered Materials 153 | -10/Materials | Discovered new exit (range 15) 317 | -10/Materials | Build established: Mutant 424 | -10/Materials | Discovered new exit (range 16) 445 | -10/Materials | Core integrity fell below 50% 529 | -10/Materials | Discovered new exit (range 14) 594 | -10/Materials | Repaired Lgt. Nuclear Core 621 | -10/Materials | Repaired Assault Rifle 648 | -10/Materials | Repaired Assault Rifle 834 | -10/Materials | Discovered new exit (range 16) 941 | -10/Materials | Discovered new exit (range 8) 968 | -10/Materials | Entered Mines 971 | -10/Mines | Assisted by bots powering up and referring to "LRC-V3" 978 | -10/Mines | Discovered new exit (range 3) 1083 | -10/Mines | Met a Derelict bent on vengeance 1136 | -10/Mines | Discovered new exit (range 6) 1137 | -10/Mines | Learned location of Storage (-8) 1194 | -10/Mines | Learned location of 2 exits from Materials 1399 | -10/Mines | Deemed a non-threat by the Exiles lab entrance 1399 | -10/Mines | Discovered new exit (range 5) 1532 | -10/Mines | Entered Exiles 1532 | -10/Exiles | Accompanied by 3 allies 1563 | -10/Exiles | Met 8R-AWN 1579 | -10/Exiles | Met EX-HEX 1630 | -10/Exiles | Met EX-DEC 1650 | -10/Exiles | Learned location of Zion (-7) 1714 | -10/Exiles | Discovered new exit (range 12) 1731 | -10/Exiles | Entered Mines 1731 | -9/Mines | Accompanied by 3 allies 1828 | -9/Mines | A weapon hastily lodged in a ceiling crevice suddenly fell to the ground 1886 | -9/Mines | Discovered new exit (range 11) 1901 | -9/Mines | Entered Materials 1901 | -8/Materials | Accompanied by 2 allies 1901 | -8/Materials | Evolved 4 slots: Utility x4 1902 | -8/Materials | Identified exit to Factory 1939 | -8/Materials | Discovered new exit (range 15) 2033 | -8/Materials | Lost 3 parts (1n2w) 2262 | -8/Materials | Core integrity fell below 50% 2325 | -8/Materials | Core integrity fell below 20% 2347 | -8/Materials | Self-destructed Last Messages --------------- 02304_ Wheel destroyed. 02305_ G-47 Trooper Aluminum Leg severed. 02306_ K-01 Serf collects debris. 02307_ Sneak attack on K-01 Serf. 02307_ K-01 Serf destroyed. 02309_ Acquired Aluminum Leg. 02310_ S-10 Pest destroyed. 02311_ Acquired 8 matter. 02311_ K-01 Serf collects debris. 02312_ Imp. Heat Sink destroyed. 02312_ S-10 Pest Lgt. Assault Rifle severed. 02314_ K-01 Serf collects debris. 02318_ Aluminum Leg destroyed. 02320_ K-01 Serf collects debris. 02324_ Cooling System destroyed. 02327_ K-01 Serf collects debris. 02327_ Acquired 44 matter. 02330_ K-01 Serf collects debris. 02340_ Dropped Rigged Lgt. Fission Core. 02347_ Reactive Plating destroyed. Map ----- +----------------------------------------------------+ | | | | | | | | | ???????????????????????????###############???????? | | ???????????????????????????# !!! """T""" #???????? | | ???????????????????????????# ! #???????? | | ???????????????????????????# ! """ """ #???????? | | ?????????????????# ####### """ """ #???????? | | ?????????????????+ ^^ + [ """ """ #???????? | | ?????????????????# ### ### [[= #???##### | | ?????????????????????### #########+########### | | ?????????????????????# ##### !![!### # | | ?????????????????????# =% %[### # | | ?????????????????????# < %%%[ T + | | ?????????????????????# a ### # | | ?????????????????????# ##### # # # | | ?????????????????????## ##???########## ## | | ??????????????????????# ############### ## | | ??????????????????????# # ## =!%[ ## | | ???????????????###+#### # " [## = ###### | | ???????????????# ! gg# """ ## #????? | | ?????????????### s%*! = ## #????? | | ?????????? =%=[[ # #????? | | ?????????? ### "" *#% # #??? | | ???????????????# """ @#= # #### #??? | | ???????????????### """ ######### #??# #??? | | ?????????????????# """u ?????? #??# #??? | | ?????????????????# ##?????### #??# #??? | | ?????????????????# ?????????# #??# #??? | | ?????????????????# ?????????# #??# #??? | | ?????????????????# ######?????????# #??? #??? | | ?????????????????# ???????????????# #??? #??? | | ?????????????????#????????????????+ #??? #??? | | ??????????????????????????????????# #??? #??? | | ??????????????????????????????????# #??? ???? | | ??????????????????????????????????# #???? ?????? | | ??????????????????????????????????# ???????????? | | ??????????????????????????????????? ???????????? | | ??????????????????????????????????? ???????????? | | ?????????????????????????????????????????????????? | | ?????????????????????????????????????????????????? | | ?????????????????????????????????????????????????? | | ?????????????????????????????????????????????????? | | ?????????????????????????????????????????????????? | | ?????????????????????????????????????????????????? | | ?????????????????????????????????????????????????? | | ?????????????????????????????????????????????????? | | ?????????????????????????????????????????????????? | | ?????????????????????????????????????????????????? | +----------------------------------------------------+ Best States ------------- Heat Dissipation 81 Energy Generation 14 Energy Capacity 250 Matter Stores 300 Matter Capacity 300 Sight Range 16 Terrain Scan Density 10 Armor Coverage 375 Resistance: KI 20 Weapon Shielding 33 Evasion (%) 55 Recoil Reduction 1 Item Schematics ----------------- None Robot Schematics ------------------ None Fabricated ------------ Nothing Alien Tech Used ----------------- None Achievements -------------- None Challenges ------------ None Game ------ Seed MakeshiftDisposableClaymores Manual? 0 Play Time 00:23:11 Cumulative 772.8 hours Start 2023.06.14 @ 21:31:55 End 2023.06.14 @ 21:54:56 Sessions 1 Manual Loads 0 Difficulty Rogue Special Mode None Game No. 230 Rogue 194 Adventurer 36 Explorer 0 Win Type - Total 16 Types 16/0/0/0/0/0/0/0/0 Lore% 57 Gallery% 63 Achievement% 50 Wizard Run 0 Options --------- ASCII 0 Keyboard 1 Movement Vi Keybinds 0 Fullscreen 1 Font 18/Terminus Map View 76x50 Tactical HUD 1 Map Filters NONE Filters NONE Steam 0 RUN: 0ef47ef7-8d8a-4142-8a1e-8c390e39a09f